bitfinex/quotes_SOLUSD_20230113
["timestamp","ask_amount","ask_price","bid_price","bid_amount"]
[1673608361671,61.79,16.745,16.736,451.66795308]
[1673608361886,17.0,16.745,16.736,451.66795308]
[1673608362108,20.0,16.748,16.736,451.66795308]
[1673608362109,44.8,16.744,16.736,451.66795308]
[1673608362428,44.79,16.745,16.736,451.66795308]
[1673608363482,17.0,16.744,16.736,451.66795308]
[1673608363667,44.8,16.743,16.736,451.66795308]
[1673608372203,17.0,16.744,16.736,451.66795308]
[1673608372395,17.0,16.745,16.736,451.66795308]
[1673608372604,44.8,16.744,16.736,451.66795308]
[1673608374411,44.79,16.746,16.736,451.66795308]
[1673608374723,44.79,16.746,16.737,10.0]
[1673608374916,44.79,16.747,16.737,10.0]
[1673608375128,20.0,16.746,16.737,10.0]
[1673608375341,20.0,16.748,16.737,10.0]
[1673608378087,44.79,16.747,16.737,10.0]
[1673608378313,20.0,16.746,16.737,10.0]
[1673608378697,20.0,16.748,16.737,10.0]
[1673608378914,44.79,16.747,16.737,10.0]
[1673608379124,20.0,16.746,16.737,10.0]
[1673608379857,20.0,16.748,16.737,10.0]
[1673608380928,20.0,16.749,16.737,10.0]
[1673608381971,12.14,16.75,16.737,10.0]
[1673608382175,44.77,16.754,16.739,10.0]
[1673608382375,44.76,16.757,16.74,117.9029]
[1673608382588,20.0,16.756,16.74,233.9079]
[1673608382900,44.77,16.755,16.741,10.0]
[1673608383532,44.77,16.755,16.74,232.3719]
[1673608383761,44.77,16.755,16.741,10.0]
[1673608386074,44.77,16.755,16.74,640.21672368]
[1673608386281,18.19879827,16.754,16.74,640.21672368]
[1673608386613,44.77,16.753,16.74,640.21672368]
[1673608387130,44.77,16.753,16.74,220.2519]
[1673608389336,44.77,16.753,16.741,10.0]
[1673608389539,44.77,16.755,16.741,10.0]
[1673608393256,44.77,16.755,16.742,17.0]
[1673608394171,44.77,16.755,16.743,10.0]
[1673608397331,17.0,16.754,16.741,10.0]
[1673608397538,17.0,16.754,16.74,419.96482368]
[1673608397539,12.12,16.75,16.74,419.96482368]
[1673608397749,64.78,16.749,16.74,419.96482368]
[1673608397961,20.0,16.749,16.74,419.96482368]
[1673608399226,20.0,16.749,16.737,10.0]
[1673608401008,20.0,16.749,16.736,451.66795308]
[1673608401221,44.79,16.748,16.736,451.66795308]
[1673608401539,20.0,16.747,16.736,451.66795308]
[1673608401854,20.0,16.747,16.737,10.0]
[1673608402253,20.0,16.748,16.737,10.0]
[1673608403516,20.0,16.748,16.736,451.66795308]
[1673608403727,44.79,16.747,16.736,451.66795308]
[1673608404145,20.0,16.746,16.736,451.66795308]
[1673608404363,44.79,16.745,16.736,451.66795308]
[1673608409854,37.0,16.744,16.736,451.66795308]
[1673608410167,44.8,16.743,16.736,451.66795308]
[1673608410374,37.0,16.742,16.736,451.66795308]
[1673608410588,44.81,16.741,16.736,399.89345308]
[1673608410800,37.0,16.74,16.736,399.89345308]
[1673608411116,44.81,16.739,16.736,382.05235308]
[1673608411307,37.0,16.738,16.736,382.05235308]
[1673608411520,44.82,16.737,16.736,382.05235308]
[1673608411729,64.82,16.737,16.736,382.05235308]
[1673608413840,81.82,16.737,16.736,382.05235308]
[1673608421300,64.82,16.737,16.736,382.05235308]
[1673608422880,20.0,16.737,16.736,382.05235308]
[1673608427944,44.79,16.748,16.736,382.05235308]
[1673608428138,20.0,16.747,16.737,10.0]
[1673608428353,44.79,16.746,16.737,10.0]
[1673608428556,44.79,16.747,16.737,10.0]
[1673608428766,20.0,16.746,16.737,10.0]
[1673608428994,44.8,16.745,16.737,10.0]
[1673608429422,44.79,16.747,16.737,10.0]
[1673608429625,20.0,16.746,16.737,10.0]
[1673608429820,44.8,16.745,16.737,10.0]
[1673608430030,20.0,16.746,16.737,10.0]
[1673608430247,20.0,16.749,16.737,10.0]
[1673608430768,44.79,16.748,16.737,10.0]
[1673608430981,20.0,16.747,16.737,10.0]
[1673608431631,20.0,16.748,16.737,10.0]
[1673608432046,44.79,16.747,16.737,10.0]
[1673608432254,20.0,16.746,16.737,10.0]
[1673608432792,20.0,16.748,16.737,10.0]
[1673608433104,44.79,16.747,16.737,10.0]
[1673608433413,20.0,16.746,16.737,10.0]
[1673608433836,20.0,16.748,16.737,10.0]
[1673608434033,44.79,16.747,16.737,10.0]
[1673608434242,20.0,16.746,16.737,10.0]
[1673608434994,20.0,16.748,16.737,10.0]
[1673608435304,44.79,16.747,16.737,10.0]
[1673608435518,20.0,16.746,16.737,10.0]
[1673608436244,20.0,16.747,16.736,382.05235308]
[1673608436439,62.98879827,16.746,16.736,382.05235308]
[1673608447500,61.79,16.746,16.736,382.05235308]
[1673608447701,1.19879827,16.745,16.736,382.05235308]
[1673608447915,44.8,16.744,16.736,382.05235308]
[1673608448116,17.0,16.743,16.736,382.05235308]
[1673608448852,61.8,16.743,16.736,382.05235308]
[1673608453285,20.0,16.742,16.736,382.05235308]
[1673608453509,61.81,16.741,16.736,382.05235308]
[1673608453690,20.0,16.74,16.736,382.05235308]
[1673608454021,61.81,16.739,16.736,382.05235308]
[1673608454232,20.0,16.738,16.736,382.05235308]
[1673608454421,61.82,16.737,16.736,382.05235308]
[1673608454628,81.82,16.737,16.736,382.05235308]
[1673608455595,37.0,16.737,16.736,382.05235308]
[1673608456969,20.0,16.737,16.736,382.05235308]
[1673608458134,44.79,16.746,16.737,20.0]
[1673608458868,44.79,16.746,16.736,382.05235308]
[1673608459386,37.0,16.745,16.736,382.05235308]
[1673608459691,44.8,16.744,16.736,382.05235308]
[1673608459914,37.0,16.743,16.736,382.05235308]
[1673608461475,44.8,16.742,16.736,382.05235308]
[1673608461691,37.0,16.741,16.736,382.05235308]
[1673608462437,1.19879827,16.74,16.736,382.05235308]
[1673608463276,12.21,16.75,16.737,10.0]
[1673608463462,20.0,16.749,16.737,10.0]
[1673608464105,12.21,16.75,16.737,10.0]
[1673608466521,20.0,16.749,16.737,10.0]
[1673608466744,64.78,16.749,16.737,10.0]
[1673608467902,20.0,16.749,16.737,10.0]
[1673608469778,64.78,16.749,16.737,10.0]
[1673608479176,20.0,16.749,16.737,10.0]
[1673608479387,20.0,16.754,16.737,10.0]
[1673608479588,44.77,16.753,16.737,10.0]
[1673608479792,20.0,16.752,16.737,10.0]
[1673608480007,44.78,16.751,16.737,10.0]
[1673608480215,20.0,16.75,16.737,10.0]
[1673608480415,44.78,16.749,16.737,10.0]
[1673608480626,20.0,16.748,16.737,10.0]
[1673608480859,44.79,16.747,16.737,10.0]
[1673608481571,44.79,16.747,16.736,382.05235308]
[1673608481776,17.0,16.746,16.736,382.05235308]
[1673608481992,44.8,16.745,16.736,382.05235308]
[1673608482203,37.0,16.744,16.736,382.05235308]
[1673608482413,44.8,16.743,16.736,382.05235308]
[1673608482639,37.0,16.742,16.736,382.05235308]
[1673608482958,44.81,16.741,16.736,382.05235308]
[1673608483146,20.0,16.74,16.736,382.05235308]
[1673608483357,44.81,16.739,16.736,382.05235308]
[1673608483579,20.0,16.738,16.736,382.05235308]
[1673608484218,20.0,16.74,16.736,382.05235308]
[1673608484419,44.81,16.739,16.736,382.05235308]
[1673608484628,20.0,16.738,16.736,382.05235308]
[1673608484835,17.0,16.742,16.736,382.05235308]
[1673608485564,44.81,16.741,16.736,382.05235308]
[1673608485983,44.78,16.749,16.737,10.0]
[1673608486191,37.0,16.748,16.737,10.0]
[1673608486406,44.79,16.747,16.737,10.0]
[1673608486627,17.0,16.746,16.737,10.0]
[1673608486840,44.8,16.745,16.737,10.0]
[1673608487049,17.0,16.744,16.737,10.0]
[1673608487268,44.8,16.743,16.737,10.0]
[1673608488856,44.8,16.743,16.736,382.05235308]
[1673608489261,17.0,16.744,16.736,382.05235308]
[1673608489598,17.0,16.744,16.737,10.0]
[1673608489790,44.8,16.743,16.737,10.0]
[1673608490008,44.79,16.747,16.737,10.0]
[1673608491907,17.0,16.746,16.737,10.0]
[1673608492222,44.8,16.745,16.737,10.0]
[1673608493566,44.79,16.747,16.737,10.0]
[1673608495373,44.79,16.747,16.736,382.05235308]
[1673608495374,17.0,16.746,16.736,382.05235308]
[1673608495579,44.8,16.745,16.736,382.05235308]
[1673608495981,61.09,16.76,16.74,12.18]
[1673608496196,61.09,16.76,16.741,116.5305]
[1673608496410,61.09,16.76,16.742,48.4]
[1673608496621,44.76,16.759,16.742,48.4]
[1673608496832,44.76,16.759,16.743,10.0]
[1673608498304,20.0,16.758,16.743,10.0]
[1673608498537,44.76,16.757,16.743,10.0]
[1673608498840,44.76,16.759,16.743,10.0]
[1673608499771,20.0,16.758,16.743,10.0]
[1673608499982,44.76,16.757,16.743,10.0]
[1673608500611,17.0,16.756,16.743,10.0]
[1673608500823,44.77,16.755,16.743,10.0]
[1673608501046,17.0,16.754,16.743,10.0]
[1673608501256,44.77,16.753,16.743,10.0]
[1673608501795,17.0,16.752,16.743,10.0]
[1673608502313,17.0,16.752,16.741,126.5305]
[1673608502533,61.78,16.751,16.741,116.5305]
[1673608502734,17.0,16.751,16.741,116.5305]
[1673608502956,17.0,16.751,16.741,126.5305]
[1673608503784,44.76,16.757,16.742,10.0]
[1673608504108,17.0,16.756,16.742,10.0]
[1673608504316,44.77,16.755,16.742,10.0]
[1673608504525,17.0,16.754,16.742,10.0]
[1673608504734,44.77,16.753,16.742,10.0]
[1673608504947,17.0,16.752,16.742,10.0]
[1673608505158,44.78,16.751,16.742,10.0]
[1673608505349,17.0,16.75,16.742,10.0]
[1673608505557,44.76,16.757,16.742,10.0]
[1673608505789,17.0,16.756,16.742,10.0]
[1673608506100,44.77,16.755,16.742,10.0]
[1673608506299,17.0,16.754,16.742,10.0]
[1673608506514,44.77,16.753,16.742,10.0]
[1673608506832,44.77,16.753,16.743,17.0]
[1673608507027,44.76,16.757,16.743,29.8800799]
[1673608507239,44.76,16.757,16.742,10.0]
[1673608508094,17.0,16.756,16.742,39.8800799]
[1673608508410,44.77,16.755,16.743,10.0]
[1673608508631,44.76,16.757,16.743,10.0]
[1673608510193,17.0,16.756,16.743,10.0]
[1673608510411,44.77,16.755,16.743,10.0]
[1673608511668,44.76,16.757,16.743,10.0]
[1673608513352,44.76,16.757,16.744,38.21]
[1673608513762,44.76,16.757,16.745,10.0]
[1673608514291,44.76,16.757,16.745,293.39129569]
[1673608514497,44.76,16.759,16.745,293.39129569]
[1673608514726,44.76,16.759,16.747,10.0]
[1673608515128,44.76,16.759,16.748,20.0]
[1673608516400,44.76,16.759,16.748,283.39129569]
[1673608516603,20.0,16.758,16.748,283.39129569]
[1673608516816,44.76,16.757,16.748,283.39129569]
[1673608517033,44.76,16.757,16.749,10.0]
[1673608518385,44.76,16.757,16.749,293.39129569]
[1673608519962,44.76,16.757,16.749,283.39129569]
[1673608520384,17.0,16.756,16.749,283.39129569]
[1673608520708,44.77,16.755,16.749,283.39129569]
[1673608521112,20.0,16.758,16.749,283.39129569]
[1673608521113,44.76,16.757,16.749,283.39129569]
[1673608521328,17.0,16.756,16.749,283.39129569]
[1673608521854,44.77,16.755,16.749,283.39129569]
[1673608522497,44.76,16.759,16.749,283.39129569]
[1673608522701,37.0,16.758,16.749,283.39129569]
[1673608522918,44.76,16.757,16.749,283.39129569]
[1673608523649,44.76,16.757,16.75,10.0]
[1673608524286,44.76,16.757,16.75,293.39129569]
[1673608525559,44.76,16.759,16.75,293.39129569]
[1673608526088,12.25,16.76,16.75,293.39129569]
[1673608526296,44.74,16.765,16.75,293.39129569]
[1673608526488,44.74,16.765,16.751,10.0]
[1673608527862,12.18,16.76,16.75,283.39129569]
[1673608528286,17.0,16.759,16.75,283.39129569]
[1673608528617,61.76,16.759,16.75,283.39129569]
[1673608529145,20.0,16.758,16.75,283.39129569]
[1673608529326,61.76,16.757,16.75,283.39129569]
[1673608530075,61.26,16.757,16.75,283.39129569]
[1673608532700,44.76,16.757,16.75,283.39129569]
[1673608533335,20.0,16.758,16.75,283.39129569]
[1673608533740,20.0,16.758,16.751,10.0]
[1673608533952,20.0,16.758,16.75,283.39129569]
[1673608534163,44.76,16.757,16.75,283.39129569]
[1673608535441,17.0,16.756,16.75,283.39129569]
[1673608536178,44.76,16.757,16.75,283.39129569]
[1673608536371,20.0,16.758,16.751,10.0]
[1673608538056,61.2,16.76,16.751,10.0]
[1673608538417,312.6166409,16.766,16.751,293.39129569]
[1673608538590,60.7,16.77,16.751,293.39129569]
[1673608538806,44.74,16.766,16.751,293.39129569]
[1673608539123,44.74,16.766,16.752,10.0]
[1673608540355,17.0,16.765,16.752,10.0]
[1673608540570,44.74,16.764,16.752,293.39129569]
[1673608540904,44.74,16.764,16.753,10.0]
[1673608541437,12.15,16.76,16.753,10.0]
[1673608541839,17.0,16.759,16.753,10.0]
[1673608542381,102.14205278,16.766,16.753,10.0]
[1673608542569,102.14205278,16.766,16.754,10.0]
[1673608543621,44.74,16.766,16.754,10.0]
[1673608543846,44.73,16.769,16.754,10.0]
[1673608544057,37.0,16.768,16.754,126.0253]
[1673608544251,44.74,16.767,16.754,126.0253]
[1673608544462,44.74,16.767,16.755,10.0]
[1673608546671,17.0,16.766,16.755,293.39129569]
[1673608547713,44.74,16.767,16.755,293.39129569]
[1673608547931,17.0,16.766,16.755,293.39129569]
[1673608548148,44.74,16.765,16.755,293.39129569]
[1673608548345,44.74,16.767,16.755,293.39129569]
[1673608549421,17.0,16.766,16.755,293.39129569]
[1673608549636,44.74,16.765,16.756,10.0]
[1673608549851,44.74,16.767,16.756,10.0]
[1673608550575,44.74,16.767,16.756,293.39129569]
[1673608553941,44.74,16.767,16.757,10.0]
[1673608554149,44.74,16.767,16.756,293.39129569]
[1673608554467,44.74,16.767,16.756,283.39129569]
[1673608554468,37.0,16.766,16.756,283.39129569]
[1673608554673,44.74,16.765,16.756,283.39129569]
[1673608554896,37.0,16.764,16.756,283.39129569]
[1673608555083,44.75,16.763,16.756,283.39129569]
[1673608555288,37.0,16.762,16.756,283.39129569]
[1673608555502,44.75,16.761,16.756,283.39129569]
[1673608555725,37.0,16.76,16.756,283.39129569]
[1673608555938,44.76,16.759,16.756,216.97146076]
[1673608556143,37.0,16.758,16.756,216.97146076]
[1673608556347,44.76,16.757,16.756,203.87716076]
[1673608556560,81.76,16.757,16.756,203.87716076]
[1673608560350,81.76,16.757,16.756,114.68090292]
[1673608562034,20.0,16.757,16.756,114.68090292]
[1673608562673,20.0,16.757,16.756,107.729466]
[1673608564460,37.0,16.757,16.756,107.729466]
[1673608565199,81.76,16.757,16.756,100.103166]
[1673608565508,10.0,16.756,16.741,396.6]
[1673608565719,81.76,16.757,16.733,151.3443]
[1673608565720,12.08,16.75,16.733,151.3443]
[1673608565926,64.28,16.749,16.733,151.3443]
[1673608566134,64.28,16.749,16.737,10.0]
[1673608567382,17.0,16.748,16.737,10.0]
[1673608567593,44.79,16.747,16.737,10.0]
[1673608569500,17.0,16.746,16.737,10.0]
[1673608569700,44.8,16.745,16.737,10.0]
[1673608569911,17.0,16.744,16.737,10.0]
[1673608570443,17.0,16.744,16.734,10.0]
[1673608570657,44.8,16.743,16.734,10.0]
[1673608570854,17.0,16.742,16.734,10.0]
[1673608576234,44.79,16.748,16.734,10.0]
[1673608576447,37.0,16.747,16.737,10.0]
[1673608576653,44.79,16.746,16.737,10.0]
[1673608576971,17.0,16.745,16.737,10.0]
[1673608577592,44.8,16.744,16.737,10.0]
[1673608577806,17.0,16.743,16.737,10.0]
[1673608578855,17.0,16.743,16.734,10.0]
[1673608579476,44.79,16.746,16.734,10.0]
[1673608579693,20.0,16.747,16.734,48.4]
[1673608579901,20.0,16.749,16.737,10.0]
[1673608580654,44.79,16.748,16.737,10.0]
[1673608580856,37.0,16.747,16.737,10.0]
[1673608581283,20.0,16.747,16.737,10.0]
[1673608581494,20.0,16.748,16.737,10.0]
[1673608584218,107.3681,16.758,16.739,10.0]
[1673608584412,17.0,16.757,16.74,108.8402]
[1673608584628,17.0,16.757,16.741,10.0]
[1673608584844,44.77,16.756,16.741,10.0]
[1673608585064,17.0,16.755,16.741,10.0]
[1673608585388,44.77,16.754,16.741,10.0]
[1673608585796,44.76,16.757,16.741,10.0]
[1673608586853,17.0,16.756,16.741,10.0]
[1673608587062,44.77,16.755,16.741,10.0]
[1673608587260,17.0,16.754,16.741,48.23]
[1673608587472,44.77,16.753,16.741,48.23]
[1673608587681,17.0,16.752,16.741,10.0]
[1673608590322,44.76,16.757,16.741,10.0]
[1673608590523,44.76,16.757,16.742,38.21]
[1673608590855,44.76,16.759,16.743,10.0]
[1673608591068,20.0,16.758,16.743,10.0]
[1673608591381,44.76,16.757,16.745,10.0]
[1673608591807,17.0,16.756,16.745,10.0]
[1673608593158,44.77,16.755,16.736,95.5241257]
[1673608593476,3.51446091,16.749,16.736,95.5241257]
[1673608593686,44.79,16.748,16.736,95.5241257]
[1673608593878,3.6295183,16.746,16.736,95.5241257]
[1673608594091,37.0,16.747,16.736,95.5241257]
[1673608594092,3.88705679,16.744,16.736,95.5241257]
[1673608594423,3.88705679,16.742,16.736,95.5241257]
[1673608594630,44.81,16.741,16.736,95.5241257]
[1673608594849,3.88705679,16.74,16.736,95.5241257]
[1673608595345,3.88705679,16.742,16.736,95.5241257]
[1673608595554,3.88705679,16.74,16.736,95.5241257]
[1673608595761,17.0,16.744,16.736,95.5241257]
[1673608595762,3.88705679,16.742,16.736,95.5241257]
[1673608595993,3.88705679,16.74,16.736,95.5241257]
[1673608596314,3.88705679,16.742,16.736,95.5241257]
[1673608596505,44.81,16.741,16.736,95.5241257]
[1673608596716,3.88705679,16.74,16.736,95.5241257]
[1673608597146,3.88705679,16.742,16.736,95.5241257]
[1673608597469,44.81,16.741,16.736,95.5241257]
[1673608597661,3.88705679,16.74,16.736,95.5241257]
[1673608597871,44.81,16.739,16.736,95.5241257]
[1673608598082,23.88705679,16.738,16.736,95.5241257]
[1673608598287,44.82,16.737,16.736,95.5241257]
[1673608598498,68.70705679,16.737,16.736,95.5241257]
[1673608599043,23.88705679,16.737,16.736,95.5241257]
[1673608601043,68.70705679,16.737,16.736,95.5241257]
[1673608601446,68.70705679,16.737,16.736,85.8494257]
[1673608601680,85.70705679,16.737,16.736,85.8494257]
[1673608603360,68.70705679,16.737,16.736,85.8494257]
[1673608603566,23.88705679,16.737,16.736,85.8494257]
[1673608605375,3.88705679,16.737,16.736,85.8494257]
[1673608605580,44.8,16.744,16.737,10.0]
[1673608605894,44.79,16.748,16.737,10.0]
[1673608606097,20.0,16.747,16.737,10.0]
[1673608606316,44.79,16.746,16.737,10.0]
[1673608606626,44.79,16.746,16.736,85.8494257]
[1673608607673,44.79,16.748,16.736,85.8494257]
[1673608608528,17.0,16.747,16.736,85.8494257]
[1673608608737,64.79,16.746,16.736,85.8494257]
[1673608608956,17.0,16.745,16.736,85.8494257]
[1673608609153,44.8,16.744,16.736,85.8494257]
[1673608609478,17.0,16.743,16.736,85.8494257]
[1673608609693,64.8,16.742,16.736,85.8494257]
[1673608610003,17.0,16.741,16.736,85.8494257]
[1673608610213,64.81,16.74,16.736,85.8494257]
[1673608612552,17.0,16.741,16.736,85.8494257]
[1673608613275,44.81,16.74,16.736,85.8494257]
[1673608614324,17.0,16.741,16.736,85.8494257]
[1673608614534,114.5655,16.749,16.736,85.8494257]
[1673608614959,44.79,16.748,16.736,85.8494257]
[1673608615899,37.0,16.747,16.736,85.8494257]
[1673608616095,44.79,16.746,16.736,85.8494257]
[1673608616308,17.0,16.745,16.736,85.8494257]
[1673608616633,44.8,16.744,16.736,85.8494257]
[1673608617245,17.0,16.743,16.736,85.8494257]
[1673608617577,44.8,16.742,16.736,85.8494257]
[1673608617796,17.0,16.741,16.736,85.8494257]
[1673608619672,44.81,16.74,16.736,85.8494257]
[1673608620498,37.0,16.739,16.736,85.8494257]
[1673608620732,44.81,16.738,16.736,85.8494257]
[1673608621040,17.0,16.737,16.736,85.8494257]
[1673608621263,81.82,16.737,16.736,85.8494257]
[1673608626286,20.0,16.737,16.736,85.8494257]
[1673608636499,64.82,16.737,16.736,85.8494257]
[1673608636712,44.8,16.743,16.736,85.8494257]
[1673608636892,17.0,16.742,16.736,85.8494257]
[1673608637106,17.0,16.743,16.736,85.8494257]
[1673608637442,44.8,16.742,16.736,85.8494257]
[1673608637649,17.0,16.741,16.736,85.8494257]
[1673608639101,44.81,16.74,16.736,85.8494257]
[1673608639312,37.0,16.739,16.736,85.8494257]
[1673608639546,44.81,16.738,16.736,85.8494257]
[1673608639737,20.0,16.737,16.736,85.8494257]
[1673608639954,64.82,16.737,16.736,85.8494257]
[1673608652584,20.0,16.737,16.736,85.8494257]
[1673608662685,64.82,16.737,16.736,85.8494257]
[1673608664158,20.0,16.737,16.736,85.8494257]
[1673608670144,37.0,16.737,16.736,85.8494257]
[1673608671720,60.89,16.75,16.736,85.8494257]
[1673608671930,12.19,16.75,16.737,16.64]
[1673608672551,12.19,16.75,16.738,17.0]
[1673608672979,44.77,16.755,16.739,10.0]
[1673608674336,37.0,16.754,16.739,10.0]
[1673608674558,44.77,16.753,16.739,10.0]
[1673608674769,37.0,16.752,16.739,10.0]
[1673608674978,44.78,16.751,16.739,10.0]
[1673608675182,37.0,16.75,16.739,10.0]
[1673608676452,20.0,16.75,16.739,10.0]
[1673608676661,20.0,16.754,16.739,10.0]
[1673608676894,61.77,16.753,16.741,10.0]
[1673608677282,20.0,16.752,16.741,10.0]
[1673608677504,44.78,16.751,16.741,10.0]
[1673608677828,20.0,16.75,16.741,10.0]
[1673608678328,20.0,16.751,16.741,10.0]
[1673608678774,20.0,16.756,16.741,10.0]
[1673608678973,44.77,16.755,16.741,10.0]
[1673608679177,20.0,16.754,16.741,10.0]
[1673608679392,44.77,16.753,16.741,10.0]
[1673608679604,20.0,16.752,16.741,10.0]
[1673608679806,44.78,16.751,16.741,10.0]
[1673608680020,20.0,16.75,16.741,10.0]
[1673608680455,20.0,16.75,16.74,110.9165]
[1673608680764,44.78,16.749,16.74,110.9165]
[1673608681170,20.0,16.748,16.74,110.9165]
[1673608681710,64.78,16.749,16.74,110.9165]
[1673608682110,20.0,16.749,16.74,110.9165]
[1673608682327,20.0,16.755,16.74,110.9165]
[1673608682550,61.77,16.754,16.74,110.9165]
[1673608682759,20.0,16.753,16.74,110.9165]
[1673608682955,61.78,16.752,16.74,110.9165]
[1673608683169,20.0,16.751,16.74,110.9165]
[1673608683378,61.78,16.75,16.74,110.9165]
[1673608683585,20.0,16.749,16.74,110.9165]
[1673608686946,44.79,16.748,16.74,110.9165]
[1673608687156,20.0,16.747,16.74,110.9165]
[1673608687892,20.0,16.748,16.74,110.9165]
[1673608688102,44.79,16.747,16.74,110.9165]
[1673608689071,17.0,16.746,16.74,110.9165]
[1673608693167,20.0,16.748,16.74,110.9165]
[1673608693370,20.0,16.748,16.736,85.8494257]
[1673608693693,44.79,16.747,16.736,85.8494257]
[1673608694218,44.79,16.747,16.737,10.0]
[1673608694410,17.0,16.746,16.737,10.0]
[1673608694622,44.79,16.745,16.737,10.0]
[1673608694825,17.0,16.744,16.737,10.0]
[1673608696634,17.0,16.744,16.736,85.8494257]
[1673608698215,44.79,16.747,16.737,10.0]
[1673608698411,17.0,16.746,16.737,10.0]
[1673608698621,44.79,16.745,16.737,10.0]
[1673608701032,44.79,16.747,16.737,10.0]
[1673608701982,17.0,16.746,16.737,10.0]
[1673608702197,44.79,16.745,16.737,10.0]
[1673608702405,44.79,16.745,16.736,85.8494257]
[1673608702615,17.0,16.744,16.736,85.8494257]
[1673608702840,44.8,16.743,16.736,85.8494257]
[1673608703248,44.79,16.747,16.736,85.8494257]
[1673608703461,17.0,16.746,16.737,10.0]
[1673608703670,44.79,16.745,16.737,10.0]
[1673608704305,44.79,16.747,16.737,10.0]
[1673608705476,17.0,16.746,16.737,10.0]
[1673608705780,44.79,16.745,16.737,10.0]
[1673608706391,44.79,16.747,16.737,10.0]
[1673608706624,17.0,16.746,16.737,10.0]
[1673608706933,44.79,16.745,16.737,10.0]
[1673608707991,44.79,16.747,16.737,10.0]
[1673608711038,44.79,16.747,16.738,17.0]
[1673608711648,44.79,16.747,16.737,10.0]
[1673608718397,44.79,16.747,16.738,17.0]
[1673608718917,44.79,16.747,16.737,10.0]
[1673608719136,44.79,16.747,16.736,85.8494257]
[1673608719965,17.0,16.746,16.736,85.8494257]
[1673608720162,44.79,16.745,16.736,85.8494257]
[1673608726271,17.0,16.744,16.736,85.8494257]
[1673608726498,44.8,16.743,16.736,85.8494257]
[1673608726707,37.0,16.742,16.736,85.8494257]
[1673608726900,44.81,16.741,16.736,85.8494257]
[1673608727110,37.0,16.74,16.736,85.8494257]
[1673608727332,44.81,16.739,16.723,112.0562]
[1673608727660,1.47262526,16.737,16.723,112.0562]
[1673608727867,44.82,16.736,16.723,112.0562]
[1673608728058,17.0,16.735,16.723,112.0562]
[1673608728272,44.82,16.734,16.723,112.0562]
[1673608732282,17.0,16.733,16.723,112.0562]
[1673608732497,44.83,16.732,16.723,112.0562]
[1673608732686,44.82,16.734,16.723,112.0562]
[1673608733234,44.82,16.734,16.722,112.431]